[Event "Mongolian Championship Open 2022"]
[Site "Chingis Khentii"]
[Date "2022.05.18"]
[Round "6.5"]
[White "Gundavaa, Bayarsaikhan"]
[Black "Enkhnar, Enkhbaatar"]
[Result "1-0"]
[ECO "B81"]
[WhiteElo "2495"]
[BlackElo "2368"]
[Annotator "TA"]
[PlyCount "112"]
[EventDate "2022.05.12"]
[EventType "tourn"]
[EventCountry "MGL"]
[SourceTitle "playchess.com"]
[Source "ChessBase"]
[SourceQuality "1"]
[TimeControl "40/5400+30:1800+30"]

{[%evp 16,112,42,42,41,45,50,33,62,65,57,58,66,66,102,118,103,124,141,74,72,78,68,66,87,88,84,89,113,113,190,113,121,108,136,138,135,139,337,156,163,152,155,129,129,129,238,247,237,237,238,241,225,116,274,279,276,214,197,168,378,356,738,694,594,569,708,608,823,1079,1074,341,851,489,12836,9585,12841,12842,12842,12843,12844,12844,12845,12845,12845,12846,12846,12847,12847,12847,12850,27998,27999,27998,27999,27999,27999,27999,27999]} 1. e4 {[%emt 0:00:28]} c5 {[%emt 0:00:29]} 2. Nf3 {[%emt 0:00:06]} e6 {[%emt 0:01:51]} 3. d4 {[%emt 0:00:16]} cxd4 {[%emt 0:00:06]} 4. Nxd4 {[%emt 0:00:11]} Nf6 {[%emt 0:00:49]} 5. Nc3 {[%emt 0:00:12]} d6 {[%emt 0:00:11]} 6. g4 {[%emt 0:01:09]} h6 {[%emt 0:00:22]} 7. h4 {[%emt 0:01:30]} Nc6 {[%emt 0:00:07]} 8. Rg1 {[%emt 0:02:05]} d5 {[%emt 0:01:05]} 9. exd5 {[%emt 0:08:35]} Nxd5 {[%emt 0:00:23] B81: Sicilian Scheveningen: Keres Attack.} 10. Nxd5 {[%emt 0:03:04]} exd5 {[%emt 0:01:31]} 11. Be3 {[%emt 0:05:36]} Be7 {[%emt 0:02:44] White is slightly better.} 12. g5 $1 {[%emt 0:04:12] 12.g5 scores better than 12.Qd2.} hxg5 {[%emt 0:00:10]} 13. hxg5 {[%emt 0:00:10]} Rh4 {[%emt 0:02:24]} 14. Qd2 {[%emt 0:08:21] [#]} Bb4 $146 {[%emt 0:16:14]} ({Predecessor:} 14... Nxd4 15. Bxd4 Kf8 16. O-O-O Bf5 17. f4 Bd6 18. Kb1 Qc8 19. Bd3 Bxd3 20. Qxd3 Rh3 21. Bxg7+ Kxg7 22. Qxd5 {1-0 (31) Bacrot,E (2671)-Hou,Y (2659) Cap d'Agde 2019}) 15. c3 {[%emt 0:00:24]} Nxd4 {[%emt 0:00:13]} 16. Bxd4 {[%emt 0:00:38]} Qe7+ {[%emt 0:00:37]} 17. Be2 {[%emt 0:06:15]} (17. Kd1 $142 $1 Bc5 18. Bxg7) 17... Bg4 $16 {[%emt 0:04:45]} 18. Kd1 {[%emt 0:05:27][%cal Be1d1,Bd1e2,Be2f3][%mdl 32]} Bxe2+ {[%emt 0:05:15]} 19. Qxe2 {[%emt 0:03:32]} Qxe2+ {[%emt 0:00:37]} 20. Kxe2 {[%emt 0:00:08]} Bf8 {[%emt 0:02:49]} 21. Kf3 {[%emt 0:09:02]} g6 {[%emt 0:12:57]} 22. Rh1 {[%emt 0:09:40]} Re4 {[%emt 0:04:51]} (22... Rxh1 $16 23. Rxh1 b6) 23. Rh7 {[%emt 0:03:00]} ({Better is} 23. Rad1 $1 $18) 23... Rc8 {[%emt 0:19:50]} 24. Bxa7 {[%emt 0:06:33]} Ke7 {[%emt 0:00:59]} 25. Bd4 {[%emt 0:06:19]} Ke6 {[%emt 0:00:26]} 26. Rh8 {[%emt 0:00:22][%cal Od4g7] Black must now prevent Bg7!} Kf5 $2 {[%emt 0:04:43]} (26... Kd7 $16 27. Rd1 Be7) 27. Be3 {[%emt 0:02:20]} (27. Rd1 $18 {and White stays clearly on top.}) 27... Rd8 {[%emt 0:01:40]} 28. Rd1 {[%emt 0:01:11] Strongly threatening Bb6.} Ke6 {[%emt 0:00:31]} 29. Bb6 {[%emt 0:04:33]} Rb8 {[%emt 0:03:05]} 30. Rd4 {[%emt 0:03:34] White is more active.} Re5 {[%emt 0:01:54]} (30... Rxd4 $16 {might work better.} 31. Bxd4 Bd6) 31. Bc7 $18 {[%emt 0:01:44]} Rf5+ {[%emt 0:00:11]} 32. Rf4 $1 {[%emt 0:01:19]} Rxf4+ {[%emt 0:00:33]} (32... Bd6 $2 33. Rxf5 (33. Bxb8 Rxf4+ 34. Kg3 f5 $16) 33... Rxh8 34. Rf6+ Kd7 35. Bxd6 $18) 33. Bxf4 {[%emt 0:00:05][%mdl 4096] Endgame KRB-KRB} Rd8 {[%emt 0:01:01]} 34. Be3 {[%emt 0:01:23]} (34. a4 $1 $18) 34... Be7 $2 {[%emt 0:00:52] [#]} (34... b5 $16 {keeps fighting.} 35. a3 Be7) 35. Rxd8 $1 {[%emt 0:01:44]} Bxd8 {[%emt 0:00:04] [#] KB-KB} 36. a4 {[%emt 0:00:33]} Kd6 {[%emt 0:03:06]} 37. b4 {[%emt 0:01:19]} d4 $2 {[%emt 0:01:40]} (37... Kd7 38. Kf4 Ke6) 38. Bxd4 {[%emt 0:01:48]} Bxg5 $2 {[%emt 0:00:12]} (38... Kd5 39. a5 Kc4) 39. Ke4 {[%emt 0:00:08]} f5+ {[%emt 0:00:26]} 40. Kd3 {[%emt 0:00:00]} Bd8 {[%emt 0:00:00]} 41. f4 {[%emt 0:06:56]} g5 {[%emt 0:00:32]} 42. fxg5 {[%emt 0:04:39]} Bxg5 {[%emt 0:00:04]} 43. Be3 $2 {[%emt 0:00:04]} (43. a5 Bh4 44. Bb6) 43... Bd8 $2 {[%emt 0:01:52]} (43... f4) 44. Bf4+ {[%emt 0:00:43]} Kd5 {[%emt 0:00:09]} (44... Kc6 $142 45. c4 Bh4) 45. a5 {[%emt 0:01:33]} Bh4 {[%emt 0:02:00]} 46. c4+ {[%emt 0:04:39][%cal Bc3c4,Bc4c5,Bc5c6][%mdl 32]} Kc6 {[%emt 0:00:30]} 47. b5+ {[%emt 0:02:18]} Kd7 {[%emt 0:01:21]} 48. c5 {[%emt 0:02:54]} Bd8 {[%emt 0:01:36]} 49. a6 {[%emt 0:04:08]} bxa6 {[%emt 0:00:19]} 50. c6+ {[%emt 0:00:31]} Ke6 {[%emt 0:02:52]} 51. bxa6 {[%emt 0:01:04]} Bb6 {[%emt 0:00:05]} 52. Be3 {[%emt 0:00:11]} Kd6 {[%emt 0:00:17]} 53. Bxb6 {[%emt 0:00:06]} Kxc6 {[%emt 0:00:08] White mates.} 54. Ba5 {[%emt 0:00:10]} f4 {[%emt 0:00:27]} 55. Ke4 {[%emt 0:00:04]} f3 {[%emt 0:00:05]} 56. Kxf3 {[%emt 0:00:03]} Kd5 {[%emt 0:34:30] Weighted Error Value: White=0.35/Black=0.36} 1-0

[Event "Mongolian Championship Open 2022"]
[Site "Chingis Khentii"]
[Date "2022.05.18"]
[Round "6.6"]
[White "Boldoo, Erdenepurev"]
[Black "Munkhgal, Gombosuren"]
[Result "1-0"]
[ECO "A70"]
[WhiteElo "2371"]
[BlackElo "2502"]
[Annotator "TA"]
[PlyCount "89"]
[EventDate "2022.05.12"]
[EventType "tourn"]
[EventCountry "MGL"]
[SourceTitle "playchess.com"]
[Source "ChessBase"]
[SourceQuality "1"]
[TimeControl "40/5400+30:1800+30"]

{[%evp 18,89,40,43,51,27,6,22,28,11,11,15,25,21,27,27,34,41,41,5,7,3,0,0,32,31,162,168,320,318,326,297,439,390,509,473,552,345,550,344,386,374,424,411,430,423,411,405,670,662,657,654,617,616,555,552,541,527,708,708,701,670,897,914,957,915,5393,2995,29979,29954,29987,29968,29990,29991]} 1. d4 {[%emt 0:00:03]} Nf6 {[%emt 0:02:08]} 2. c4 {[%emt 0:00:09]} c5 {[%emt 0:03:24]} 3. d5 {[%emt 0:01:13]} e6 {[%emt 0:00:12]} 4. Nc3 {[%emt 0:00:30]} exd5 {[%emt 0:00:36]} 5. cxd5 {[%emt 0:00:02]} d6 {[%emt 0:00:07]} 6. e4 {[%emt 0:00:17]} g6 {[%emt 0:00:03]} 7. Bd3 {[%emt 0:01:36]} Bg7 {[%emt 0:00:07]} 8. h3 {[%emt 0:00:09]} O-O {[%emt 0:00:08]} 9. Nf3 {[%emt 0:00:05]} Re8 {[%emt 0:00:13]} 10. O-O {[%emt 0:00:47]} Nbd7 {[%emt 0:00:08][%cal Oc5c4,Bb8d7,Bd7c5,Bc5e4][%mdl 32] now scores much better than the old 10...a6. A70: Modern Benoni: 6 e4 g6 7 Nf3.} 11. Bf4 {[%emt 0:02:36]} c4 $1 {[%emt 0:00:06]} 12. Bc2 {[%emt 0:03:01]} Nc5 $1 {[%emt 0:00:49] The position is equal.} 13. Re1 {[%emt 0:01:16] Black should prevent Nd2.} b5 $1 {[%emt 0:12:40]} 14. Nxb5 {[%emt 0:23:13]} Nfxe4 {[%emt 0:01:09]} 15. Bxe4 {[%emt 0:14:36]} Nxe4 {[%emt 0:00:12]} 16. Qc2 $36 {[%emt 0:00:42][%csl LRc4,LRe4][%mdl 2048] Black is under pressure.} Ba6 {[%emt 0:37:50]} 17. a4 {[%emt 0:10:48]} f5 {[%emt 0:08:14]} 18. Qxc4 {[%emt 0:02:17]} Bxb2 {[%emt 0:01:32] [#]} 19. Ra2 $146 {[%emt 0:01:04]} ({Predecessor:} 19. Rab1 Bg7 20. Nfd4 Qh4 21. Rxe4 Rxe4 22. Qc6 Rae8 23. Ne6 Bxb5 24. axb5 R8xe6 25. dxe6 Qxf4 26. Qe8+ {1-0 (26) Le Roux,J (2466)-Hou,Y (2158) Shenzhen 2005}) 19... Bf6 {[%emt 0:11:03]} 20. Nfd4 {[%emt 0:00:09]} Qa5 {[%emt 0:03:29]} 21. Rae2 {[%emt 0:04:11]} Rac8 {[%emt 0:11:42] A mistake that costs the game.} ({Black should try} 21... Bxb5 $14 22. Qxb5 Qb6) 22. Nc6 $18 {[%emt 0:00:24] Pair of Knights!} Qb6 {[%emt 0:00:49] [#]} (22... Bxb5 {might work better.} 23. axb5 (23. Nxa5 $2 {perishes.} Bxc4 24. Nxc4 Rxc4 $19) 23... Qc3 24. Qxc3 Bxc3) 23. Be3 $1 {[%emt 0:00:45]} Qb7 {[%emt 0:00:21][%cal Oe4c3] [#]} 24. Bd4 {[%emt 0:00:09][%cal Oe2e4] Inhibits Nc3. Rxe4! is the strong threat.} Bxb5 {[%emt 0:02:59]} (24... Qf7 {was worth a try.}) 25. axb5 {[%emt 0:00:14]} Bxd4 {[%emt 0:00:51]} 26. Qxd4 {[%emt 0:00:09]} Qg7 {[%emt 0:01:59]} 27. Qxg7+ {[%emt 0:00:47]} Kxg7 {[%emt 0:00:01]} 28. Nxa7 {[%emt 0:00:07]} Ra8 {[%emt 0:01:04]} 29. Nc6 {[%emt 0:00:07]} Rf8 {[%emt 0:00:31]} 30. b6 {[%emt 0:00:14]} Rf7 {[%emt 0:00:29]} 31. f3 {[%emt 0:00:31]} Nc5 {[%emt 0:00:10]} 32. Re7 {[%emt 0:00:20]} Ra2 {[%emt 0:00:52]} (32... Raf8 $142 33. Ra7 Kf6 34. Rxf7+ Rxf7 35. Re6+ Kg5 36. Rxd6 Kf4) 33. b7 {[%emt 0:00:15]} Nxb7 {[%emt 0:00:30]} 34. Rxf7+ {[%emt 0:00:05]} Kxf7 {[%emt 0:00:02][%mdl 4096] Endgame KRN-KRN} 35. Re7+ {[%emt 0:00:06]} Kf6 {[%emt 0:00:03][%cal Ob7d8]} 36. Rxb7 {[%emt 0:00:04] KRN-KR} Rd2 {[%emt 0:00:10]} 37. Nd8 {[%emt 0:01:32]} Ke5 {[%emt 0:01:20]} 38. Rxh7 {[%emt 0:00:13]} Rxd5 {[%emt 0:00:05]} 39. Nf7+ {[%emt 0:00:52]} Kf4 {[%emt 0:00:06]} 40. Rg7 {[%emt 0:00:00]} Rd1+ {[%emt 0:00:00]} 41. Kh2 {[%emt 0:00:13]} d5 {[%emt 0:00:32]} 42. Rxg6 {[%emt 0:00:35] White wants to mate with Re6.} d4 {[%emt 0:00:04]} 43. h4 {[%emt 0:01:26] White mates.} d3 {[%emt 0:00:06]} 44. Rd6 {[%emt 0:00:07]} d2 {[%emt 0:00:15]} 45. Rd3 {[%emt 0:00:14] Weighted Error Value: White=0.15 (very precise) /Black=0.72} 1-0

[Event "Mongolian Championship Open 2022"]
[Site "Chingis Khentii"]
[Date "2022.05.19"]
[Round "7.1"]
[White "Agibileg, Uurtsaikh"]
[Black "Battulga, Namkhai"]
[Result "1-0"]
[ECO "D15"]
[WhiteElo "2440"]
[BlackElo "2402"]
[Annotator "TA"]
[PlyCount "81"]
[EventDate "2022.05.12"]
[EventType "tourn"]
[EventCountry "MGL"]
[SourceTitle "playchess.com"]
[Source "ChessBase"]
[SourceQuality "1"]
[TimeControl "40/5400+30:1800+30"]

{[%evp 10,81,39,31,50,28,31,27,52,46,49,54,64,42,61,-8,38,-16,0,-21,16,12,27,31,31,0,26,29,26,29,24,40,0,9,14,0,86,52,62,61,46,0,18,0,150,152,126,140,190,144,136,131,127,66,58,88,77,80,112,80,750,750,723,685,750,744,720,693,783,783,783,783,758,736]} 1. d4 {[%emt 0:00:10]} d5 {[%emt 0:00:04]} 2. c4 {[%emt 0:00:15]} c6 {[%emt 0:00:07]} 3. Nf3 {[%emt 0:00:11]} Nf6 {[%emt 0:00:05]} 4. Nc3 {[%emt 0:00:10]} a6 {[%emt 0:00:37]} 5. c5 {[%emt 0:00:58]} Bf5 {[%emt 0:03:26]} 6. Qb3 {[%emt 0:07:40]} Ra7 {[%emt 0:00:08] D15: Slav Defence: 4 Nc3 a6 and gambit lines after 4 Nc3 dxc4.} 7. Bf4 {[%emt 0:01:22]} Nbd7 {[%emt 0:07:21]} 8. h3 {[%emt 0:01:41] 8.e3 is the fancy move.} g6 {[%emt 0:03:59] White has an edge.} 9. e3 {[%emt 0:08:10]} Bg7 {[%emt 0:00:21]} 10. Be2 {[%emt 0:00:20]} O-O {[%emt 0:02:44]} 11. O-O {[%emt 0:02:09]} Ne4 {[%emt 0:03:34] [#]} 12. Na4 $146 {[%emt 0:01:33]} (12. Rad1 $14) ({Predecessor:} 12. Bh2 h6 13. Nxe4 Bxe4 14. Nd2 Bf5 15. g4 Be6 16. Kg2 Kh7 17. Qc2 Ra8 18. Bd3 {1-0 (87) Lenic,L (2659)-Balog,I (2621) Velky Cetin 2018}) 12... Re8 {[%emt 0:04:22]} (12... e5 $11 13. dxe5 (13. Nxe5 Bxe5 14. dxe5 Nd2 $15) 13... Nexc5 14. Nxc5 Nxc5) 13. Bh2 {[%emt 0:04:55]} (13. g4 $14 e5 14. Nxe5 (14. gxf5 exf4 15. fxg6 hxg6 $17)) 13... e5 $11 {[%emt 0:02:06]} 14. Rfe1 {[%emt 0:01:25]} ({Much worse is} 14. g4 Be6 15. Nxe5 Bxe5 16. dxe5 (16. Bxe5 Nxe5 17. dxe5 Qh4 $17) 16... Qh4 $15) 14... f6 {[%emt 0:14:54]} 15. Rac1 {[%emt 0:08:56]} g5 {[%emt 0:07:43]} 16. Bd3 {[%emt 0:03:05]} Bg6 {[%emt 0:05:05]} 17. dxe5 {[%emt 0:05:31]} fxe5 {[%emt 0:00:12][%cal Od7c5]} ({Don't do} 17... Nxe5 18. Nxe5 fxe5 19. Qc2 $16) 18. Bxe4 {[%emt 0:00:41]} Bxe4 {[%emt 0:00:05]} 19. Nd2 $1 {[%emt 0:00:10]} Bg6 {[%emt 0:00:28]} 20. e4 {[%emt 0:00:14]} Bf7 {[%emt 0:00:44]} 21. exd5 {[%emt 0:04:28]} cxd5 {[%emt 0:00:06]} 22. Nb6 {[%emt 0:00:22]} Nb8 {[%emt 0:15:20]} (22... e4 $1 $11) 23. Rcd1 {[%emt 0:15:42][%cal Od2e4] White is much more active. The black rooks are badly placed.} Nc6 {[%emt 0:03:07]} 24. Qa4 {[%emt 0:01:00][%cal Od2c4]} Qe7 {[%emt 0:02:07]} 25. Nb3 {[%emt 0:02:13] Pair of Knights!} Rd8 {[%emt 0:05:15]} 26. Qg4 {[%emt 0:02:57] Nc8 is the strong threat.} a5 {[%emt 0:01:14]} (26... h5 $11 27. Qf5 Qf6 28. Qxf6 Bxf6) 27. Nc8 $16 {[%emt 0:01:02]} Rxc8 {[%emt 0:01:32]} 28. Qxc8+ {[%emt 0:01:56]} Qf8 {[%emt 0:00:02]} (28... Bf8 $16 {was called for.}) 29. Qc7 {[%emt 0:02:08]} (29. Qg4 $18) 29... e4 {[%emt 0:07:35]} 30. f3 {[%emt 0:03:01]} a4 {[%emt 0:00:10]} 31. Bd6 {[%emt 0:00:14]} ({White should try} 31. Nd2 $16) 31... Qa8 $1 $14 {[%emt 0:01:30]} 32. Nd2 {[%emt 0:06:12][%cal Bb3d2,Bd2e4,Be4f6,Bf6e8,Be8c7,Bc7e6][%mdl 32]} b5 {[%emt 0:07:12]} 33. Qb6 {[%emt 0:00:06]} Nd4 {[%emt 0:00:18] [#] Threatens to win with ...Rb7.} 34. Bb8 $1 {[%emt 0:02:11]} ({Don't blunder} 34. fxe4 $2 Rb7 35. Qxb7 Qxb7 $19) 34... Ra6 $2 {[%emt 0:01:14][%mdl 8192] A mistake that costs the game.} (34... Re7 $16) 35. Qd8+ $18 {[%emt 0:14:52] White is clearly winning.} Bf8 {[%emt 0:03:13] [#]} 36. Nxe4 $3 {[%emt 0:00:00][%mdl 512]} Ne6 {[%emt 0:00:00]} (36... Nxf3+ 37. gxf3) 37. Nf6+ {[%emt 0:00:00]} Kg7 {[%emt 0:00:00]} 38. Ne8+ {[%emt 0:00:00]} Kg8 {[%emt 0:00:00] [#]} 39. Rxe6 {[%emt 0:00:00]} Rxe6 {[%emt 0:00:00]} 40. Nc7 {[%emt 0:00:00]} Qc6 {[%emt 0:00:00]} 41. Nxe6 {[%emt 0:00:00] Weighted Error Value: White=0.17 (very precise) /Black=0.24 (precise)} 1-0

[Event "Mongolian Championship Open 2022"]
[Site "Chingis Khentii"]
[Date "2022.05.19"]
[Round "7.2"]
[White "Bilguun, Sumiya"]
[Black "Batsuren, Dambasuren"]
[Result "1/2-1/2"]
[ECO "B13"]
[WhiteElo "2454"]
[BlackElo "2501"]
[Annotator "TA"]
[PlyCount "72"]
[EventDate "2022.05.12"]
[EventType "tourn"]
[EventCountry "MGL"]
[SourceTitle "playchess.com"]
[Source "ChessBase"]
[SourceQuality "1"]
[TimeControl "40/5400+30:1800+30"]

{[%evp 19,72,26,22,30,27,22,14,12,22,0,51,0,0,-2,1,-35,-23,-29,-29,-48,-22,-41,-47,-45,-44,-56,-42,-60,-54,-64,-43,-47,-50,-47,-45,-42,-16,-15,-16,-23,0,0,0,-15,0,0,0,0,0,-8,-5,-8,-8,-23,-23]} 1. e4 {[%emt 0:00:03]} c6 {[%emt 0:00:06]} 2. d4 {[%emt 0:00:07]} d5 {[%emt 0:00:05]} 3. exd5 {[%emt 0:00:06]} cxd5 {[%emt 0:00:04]} 4. Bd3 {[%emt 0:00:05]} Nc6 {[%emt 0:00:06]} 5. c3 {[%emt 0:00:05]} Nf6 {[%emt 0:00:05]} 6. Bf4 {[%emt 0:00:07]} Bg4 {[%emt 0:00:57]} 7. Qb3 {[%emt 0:00:12]} Qd7 {[%emt 0:00:09]} 8. Nd2 {[%emt 0:00:21]} e6 {[%emt 0:00:07]} 9. Ngf3 {[%emt 0:00:18]} Bd6 {[%emt 0:00:10]} 10. Bxd6 {[%emt 0:02:15]} Qxd6 {[%emt 0:00:05]} 11. O-O {[%emt 0:01:25] B13: Caro-Kann: Exchange Variation and Panov-Botvinnik Attack.} O-O {[%emt 0:01:02]} 12. Rae1 {[%emt 0:01:56]} Ne7 {[%emt 0:01:34]} 13. Ne5 {[%emt 0:09:13] The position is equal.} ({Much worse is} 13. Qxb7 Rfb8 14. Qa6 Qxa6 15. Bxa6 Rxb2 $17) 13... Bf5 {[%emt 0:00:07]} 14. Qd1 {[%emt 0:08:36] [#]} ({But not} 14. Qxb7 $2 Bxd3 15. Nxd3 Rfb8 16. Qxa8 Rxa8 $19) 14... b5 $146 {[%emt 0:09:22]} (14... Bxd3 $11 15. Nxd3 Qa6) ({Predecessor:} 14... Bxd3 15. Nxd3 Rab8 16. a4 Nc6 17. b4 b6 18. Ne5 Rbc8 19. Qb3 Rc7 20. Ra1 Rfc8 {1-0 (39) Tabatabaei,M (2629)-Harsha,B (2509) Chess.com INT 2020}) 15. a3 {[%emt 0:00:28]} (15. Bxb5 $14 Qb6 16. Qb3) 15... Bxd3 $11 {[%emt 0:01:37]} 16. Nxd3 {[%emt 0:00:12]} a5 {[%emt 0:00:07]} 17. b4 {[%emt 0:10:34]} axb4 {[%emt 0:14:15]} 18. axb4 {[%emt 0:00:05]} Ra2 {[%emt 0:00:05]} 19. Nc5 {[%emt 0:00:51]} Rfa8 {[%emt 0:06:28]} 20. Nf3 {[%emt 0:14:54]} Nf5 {[%emt 0:05:28]} 21. Qd3 {[%emt 0:18:37]} Qb8 {[%emt 0:01:03]} 22. Ne5 {[%emt 0:06:06]} Nd6 {[%emt 0:00:43]} 23. Re2 {[%emt 0:08:01]} Rxe2 {[%emt 0:08:37]} 24. Qxe2 {[%emt 0:00:19]} Nfe4 {[%emt 0:00:23]} 25. Qb2 {[%emt 0:04:18]} Qa7 {[%emt 0:00:55] Inhibits Ra1.} 26. f3 {[%emt 0:00:36]} Nf6 {[%emt 0:00:12]} 27. Nb3 {[%emt 0:08:26][%cal Bc5b3,Bb3a1,Ba1c2,Bc2e3][%mdl 32]} Qa2 {[%emt 0:12:15]} 28. Qxa2 {[%emt 0:00:08]} Rxa2 {[%emt 0:00:05]} 29. Ra1 {[%emt 0:00:17]} Rxa1+ {[%emt 0:00:18]} (29... Rc2 {is more complex.} 30. Ra8+ Nfe8 31. h4 Rxc3 32. Nc5 g6) 30. Nxa1 {[%emt 0:00:07][%mdl 4096] Endgame KNN-KNN} Nfe8 {[%emt 0:04:18]} 31. Nc2 {[%emt 0:00:10]} f6 {[%emt 0:00:14]} 32. Nc6 {[%emt 0:00:49]} Nc4 {[%emt 0:00:38]} 33. Kf2 {[%emt 0:00:48]} Kf7 {[%emt 0:00:14]} 34. Na5 {[%emt 0:01:13]} Ned6 {[%emt 0:00:55]} 35. Nb3 {[%emt 0:01:51]} h5 {[%emt 0:01:20]} 36. Ne3 {[%emt 0:00:21]} g5 {[%emt 0:34:21] Weighted Error Value: White=0.11 (very precise) /Black=0.09 (flawless)} 1/2-1/2